fUSD/lending_fUSD_20240625
["ID","MTS","AMOUNT","RATE_DAILY","PERIOD"]
[330385664,1719339039260,-500.0,0.00019178,2]
[330385665,1719339039269,-500.0,0.00019178,2]
[330385666,1719339039280,-500.0,0.00019178,2]
[330385667,1719339039292,-919.05,0.00019178,2]
[330385668,1719339039302,-733.34,0.00019178,2]
[330385669,1719339039312,-500.0,0.00019178,2]
[330385670,1719339039323,-530.71,0.00019178,2]
[330385671,1719339039333,-500.0,0.00019178,2]
[330385672,1719339039343,-500.0,0.00019178,2]
[330385673,1719339039353,-500.0,0.00019178,2]
[330385674,1719339039363,-497.47783859,0.00019178,2]
[330385675,1719339039374,-11353.44,0.00019178,2]
[330385676,1719339039384,-500.0,0.00019178,2]
[330385677,1719339039394,-500.0,0.00019178,2]
[330385678,1719339039404,-500.0,0.00019178,2]
[330385679,1719339039414,-404.88455126,0.00019178,2]
[330385680,1719339039423,-1437.2,0.00019178,2]
[330385681,1719339039434,-500.0,0.00019178,2]
[330385682,1719339039444,-500.0,0.00019178,2]
[330385683,1719339039454,-738.4,0.00019178,2]
[330385684,1719339039464,-500.0,0.00019178,2]
[330385685,1719339039474,-500.0,0.00019178,2]
[330385686,1719339039484,-2493.03,0.00019178,2]
[330385687,1719339039494,-500.0,0.00019178,2]
[330385688,1719339039504,-500.0,0.00019178,2]
[330385689,1719339039520,-500.0,0.00019178,2]
[330385690,1719339039530,-713.79,0.00019178,2]
[330385691,1719339039543,-547.01326111,0.00019178,2]
[330385692,1719339039554,-500.0,0.00019178,2]
[330385693,1719339039563,-500.0,0.00019178,2]
[330385694,1719339039574,-500.0,0.00019178,2]
[330385695,1719339039584,-1141.83,0.00019178,2]
[330385696,1719339039595,-823.29,0.00019178,2]
[330385697,1719339039606,-1411.4,0.00019178,2]
[330385698,1719339039616,-500.0,0.00019178,2]
[330385699,1719339039627,-500.0,0.00019178,2]
[330385700,1719339039637,-2160.85,0.00019178,2]
[330385701,1719339039647,-500.0,0.00019178,2]
[330385702,1719339039656,-500.0,0.00019178,2]
[330385703,1719339039667,-500.0,0.00019178,2]
[330385704,1719339039676,-500.0,0.00019178,2]
[330385705,1719339039686,-1252.65,0.00019178,2]
[330385706,1719339039697,-1064.14,0.00019178,2]
[330385707,1719339039708,-500.0,0.00019178,2]
[330385708,1719339039718,-500.0,0.00019178,2]
[330385709,1719339039729,-500.0,0.00019178,2]
[330385710,1719339039739,-500.0,0.00019178,2]
[330385711,1719339039749,-681.59,0.00019178,2]
[330385712,1719339039760,-500.0,0.00019178,2]
[330385713,1719339039770,-500.0,0.00019178,2]
[330385714,1719339039780,-783.41,0.00019178,2]
[330385715,1719339039795,-500.0,0.00019178,2]
[330385718,1719339039807,-1954.51,0.00019178,2]
[330385720,1719339039819,-775.53,0.00019178,2]
[330385721,1719339039829,-739.39,0.00019178,2]
[330385722,1719339039839,-500.0,0.00019178,2]
[330385723,1719339039849,-246.27749962,0.00019178,2]
[330385724,1719339039860,-500.0,0.00019178,2]
[330385725,1719339039870,-500.0,0.00019178,2]
[330385726,1719339039880,-1360.11,0.00019178,2]
[330385727,1719339039890,-500.0,0.00019178,2]
[330385728,1719339039900,-511.14,0.00019178,2]
[330385729,1719339039911,-500.0,0.00019178,2]
[330385730,1719339039922,-500.0,0.00019178,2]
[330385731,1719339039932,-500.0,0.00019178,2]
[330385732,1719339039942,-779.29,0.00019178,2]
[330385733,1719339039952,-1515.65,0.00019178,2]
[330385734,1719339039963,-3471.0,0.00019178,2]
[330385735,1719339039973,-500.0,0.00019178,2]
[330385736,1719339039984,-647.03,0.00019178,2]
[330385737,1719339039995,-587.33,0.00019178,2]
[330385738,1719339040006,-3900.19,0.00019178,2]
[330385739,1719339040016,-934.92,0.00019178,2]
[330385740,1719339040027,-500.0,0.00019178,2]
[330385741,1719339040041,-500.0,0.00019178,2]
[330385742,1719339040051,-500.0,0.00019178,2]
[330385743,1719339040061,-500.0,0.00019178,2]
[330385744,1719339040071,-500.0,0.00019178,2]
[330385745,1719339040081,-500.0,0.00019178,2]
[330385746,1719339040091,-1955.77,0.00019178,2]
[330385747,1719339040101,-2879.54,0.00019178,2]
[330385748,1719339040110,-500.0,0.00019178,2]
[330385749,1719339040120,-501.8761443,0.00019178,2]
[330385750,1719339041951,-202.01806079,0.00019119,2]
[330385751,1719339041961,-157.52085627,0.00019167,2]
[330385752,1719339041971,-106.6338557,0.00019178,2]
[330385753,1719339041979,-394.96274026,0.00019178,2]
[330385754,1719339041991,-1773.058124,0.00019178,2]
[330385755,1719339042002,-310.16913574,0.00019178,2]
[330385756,1719339042011,-500.0,0.00019178,2]
[330385757,1719339042020,-764.29,0.00019178,2]
[330385758,1719339042030,-1524.01,0.00019178,2]
[330385759,1719339042041,-500.0,0.00019178,2]
[330385760,1719339042050,-132.82598162,0.00019178,2]
[330385761,1719339042081,-0.06587318,0.00019178,2]
[330385762,1719339042093,-385.7981452,0.00019178,2]
[330385763,1719339042102,-500.0,0.00019178,2]
[330385764,1719339042112,-957.3,0.00019178,2]
[330385765,1719339042121,-2095.88,0.00019178,2]
[330385766,1719339042130,-500.0,0.00019178,2]
[330385767,1719339042139,-648.12,0.00019178,2]
[330385768,1719339042149,-1529.53,0.00019178,2]
[330385769,1719339042159,-500.0,0.00019178,2]
[330385770,1719339042168,-925.69,0.00019178,2]
[330385771,1719339042177,-500.0,0.00019178,2]
[330385772,1719339042188,-500.0,0.00019178,2]
[330385773,1719339042197,-500.0,0.00019178,2]
[330385774,1719339042206,-500.0,0.00019178,2]
[330385775,1719339042214,-1486.52,0.00019178,2]
[330385776,1719339042223,-120.88214269,0.00019178,2]
[330385777,1719339042236,-379.11785731,0.00019178,2]
[330385778,1719339042246,-799.18,0.00019178,2]
[330385779,1719339042257,-810.16305821,0.00019178,2]
[330385780,1719339042595,-1189.02694179,0.00019178,2]
[330385781,1719339042605,-666.48,0.00019178,2]
[330385782,1719339042615,-144.46018728,0.00019178,2]
[330385783,1719339042627,-355.53981272,0.00019178,2]
[330385784,1719339042636,-358.46018729,0.00019178,2]
[330385785,1719339042648,-141.53981271,0.00019178,2]
[330385786,1719339042658,-617.97,0.00019178,2]
[330385787,1719339042667,-980.7,0.00019178,2]
[330385788,1719339042677,-2183.9,0.00019178,2]
[330385789,1719339042686,-500.0,0.00019178,2]
[330385790,1719339042696,-4826.68,0.00019178,2]
[330385791,1719339042705,-500.0,0.00019178,2]
[330385792,1719339042715,-500.0,0.00019178,2]
[330385793,1719339042724,-2468.52,0.00019178,2]
[330385794,1719339042733,-500.0,0.00019178,2]
[330385795,1719339042743,-603.5,0.00019178,2]
[330385796,1719339042753,-15639.2,0.00019178,2]
[330385797,1719339042764,-639.71,0.00019178,2]
[330385798,1719339042774,-500.0,0.00019178,2]
[330385799,1719339042785,-2000.13,0.00019178,2]
[330385800,1719339042794,-500.0,0.00019178,2]
[330385801,1719339042806,-1201.22,0.00019178,2]
[330385802,1719339042816,-671.36,0.00019178,2]
[330385804,1719339042826,-776.22,0.00019178,2]
[330385807,1719339042836,-1457.97,0.00019178,2]
[330385809,1719339042846,-500.0,0.00019178,2]
[330385812,1719339042855,-824.05,0.00019178,2]
[330385816,1719339042865,-500.0,0.00019178,2]
[330385819,1719339042874,-500.0,0.00019178,2]
[330385822,1719339042884,-1744.25,0.00019178,2]
[330385823,1719339042894,-500.0,0.00019178,2]
[330385825,1719339042903,-746.63,0.00019178,2]
[330385827,1719339042913,-503.38,0.00019178,2]
[330385829,1719339042923,-500.0,0.00019178,2]
[330385831,1719339042933,-500.0,0.00019178,2]
[330385833,1719339042943,-2155.55,0.00019178,2]
[330385835,1719339042953,-500.0,0.00019178,2]
[330385837,1719339042962,-500.0,0.00019178,2]
[330385838,1719339042973,-881.07,0.00019178,2]
[330385839,1719339042983,-500.0,0.00019178,2]
[330385840,1719339042992,-4740.92,0.00019178,2]
[330385841,1719339043003,-500.0,0.00019178,2]
[330385842,1719339043013,-500.67,0.00019178,2]
[330385843,1719339043023,-500.0,0.00019178,2]
[330385844,1719339043032,-1792.39,0.00019178,2]
[330385845,1719339043043,-621.35,0.00019178,2]
[330385846,1719339043052,-1224.39,0.00019178,2]
[330385847,1719339043068,-500.0,0.00019178,2]
[330385848,1719339043083,-587.11525831,0.00019178,2]
[330385849,1719339043093,-500.0,0.00019178,2]
[330385850,1719339043103,-500.0,0.00019178,2]
[330385851,1719339043112,-500.0,0.00019178,2]
[330385852,1719339043122,-500.0,0.00019178,2]
[330385853,1719339043132,-500.0,0.00019178,2]
[330385854,1719339043142,-2597.64,0.00019178,2]
[330385855,1719339043151,-512.95786247,0.00019178,2]
[330385856,1719339043161,-1660.24,0.00019178,2]
[330385857,1719339043170,-500.0,0.00019178,2]
[330385858,1719339043180,-500.0,0.00019178,2]
[330385859,1719339043190,-500.0,0.00019178,2]
[330385860,1719339043200,-1393.16,0.00019178,2]
[330385861,1719339043210,-512.62,0.00019178,2]
[330385862,1719339043220,-518.64,0.00019178,2]
[330385863,1719339043229,-562.57,0.00019178,2]
[330385864,1719339043239,-1162.46,0.00019178,2]
[330385865,1719339043249,-977.79,0.00019178,2]
[330385866,1719339043259,-3166.59,0.00019178,2]
[330385867,1719339043269,-771.49,0.00019178,2]
[330385868,1719339043279,-872.69,0.00019178,2]
[330385869,1719339043289,-667.32,0.00019178,2]
[330385870,1719339043299,-500.0,0.00019178,2]
[330385871,1719339043309,-504.29866919,0.00019178,2]
[330385872,1719339043318,-1553.72,0.00019178,2]
[330385873,1719339043329,-1743.05,0.00019178,2]
[330385874,1719339043339,-1743.05,0.00019178,2]
[330385875,1719339043349,-517.46,0.00019178,2]
[330385876,1719339043358,-500.0,0.00019178,2]
[330385877,1719339043369,-500.0,0.00019178,2]
[330385878,1719339043379,-500.0,0.00019178,2]
[330385879,1719339043389,-238.79275255,0.00019178,2]
[330385880,1719339043407,-482.74772025,0.00019178,2]
[330385881,1719339043419,-598.9595272,0.00019178,2]
[330385882,1719339043430,-500.0,0.00019178,2]
[330385883,1719339043439,-714.64,0.00019178,2]
[330385884,1719339043450,-1654.52,0.00019178,2]
[330385885,1719339043460,-500.0,0.00019178,2]
[330385886,1719339043470,-1057.71,0.00019178,2]
[330385887,1719339043480,-1365.71,0.00019178,2]
[330385888,1719339043491,-525.79,0.00019178,2]
[330385889,1719339043501,-613.51,0.00019178,2]
[330385890,1719339043512,-1058.23,0.00019178,2]
[330385891,1719339043524,-930.45,0.00019178,2]
[330385892,1719339043535,-500.0,0.00019178,2]
[330385893,1719339043545,-263.35684019,0.00019178,2]
[330385894,1719339043557,-818.1,0.00019178,2]
[330385895,1719339043567,-791.54,0.00019178,2]
[330385896,1719339043576,-780.45,0.00019178,2]
[330385897,1719339043592,-500.0,0.00019178,2]
[330385898,1719339043603,-968.23,0.00019178,2]
[330385899,1719339043614,-500.0,0.00019178,2]
[330385900,1719339043624,-500.0,0.00019178,2]
[330385901,1719339043635,-907.02,0.00019178,2]
[330385902,1719339043645,-606.48,0.00019178,2]
[330385903,1719339043655,-779.92,0.00019178,2]
[330385904,1719339043665,-2754.66,0.00019178,2]
[330385905,1719339043675,-500.0,0.00019178,2]
[330385906,1719339043686,-728.02,0.00019178,2]
[330385907,1719339043696,-365.79295107,0.00019178,2]
[330385908,1719339043707,-500.0,0.00019178,2]
[330385909,1719339043717,-313.05988588,0.00019178,2]
[330385910,1719339043728,-500.0,0.00019178,2]
[330385911,1719339043738,-1175.61,0.00019178,2]
[330385912,1719339043748,-500.0,0.00019178,2]
[330385913,1719339043759,-500.0,0.00019178,2]
[330385914,1719339043770,-2335.97,0.00019178,2]
[330385915,1719339043780,-794.26,0.00019178,2]
[330385916,1719339043791,-500.0,0.00019178,2]
[330385917,1719339043803,-1705.31,0.00019178,2]
[330385918,1719339043813,-1665.35,0.00019178,2]
[330385919,1719339043824,-500.0,0.00019178,2]
[330385920,1719339043834,-500.0,0.00019178,2]
[330385921,1719339043846,-500.0,0.00019178,2]
[330385922,1719339043857,-500.0,0.00019178,2]
[330385923,1719339043867,-500.0,0.00019178,2]
[330385924,1719339043877,-500.0,0.00019178,2]
[330385925,1719339043888,-1236.59,0.00019178,2]
[330385926,1719339043899,-593.49,0.00019178,2]
[330385927,1719339043909,-2016.42,0.00019178,2]
[330385928,1719339043920,-222.09825464,0.00019178,2]
[330385929,1719339043931,-795.26,0.00019178,2]
[330385930,1719339043941,-1571.02,0.00019178,2]
[330385931,1719339043953,-1047.44,0.00019178,2]
[330385932,1719339043963,-500.0,0.00019178,2]
[330385933,1719339043974,-500.0,0.00019178,2]
[330385934,1719339043984,-500.0,0.00019178,2]
[330385935,1719339043995,-206.18403941,0.00019178,2]
[330385936,1719339044005,-4736.09,0.00019178,2]
[330385937,1719339044016,-500.0,0.00019178,2]
[330385938,1719339044026,-735.24,0.00019178,2]
[330385939,1719339044036,-722.59,0.00019178,2]
[330385940,1719339044047,-500.0,0.00019178,2]
[330385941,1719339044057,-1359.78,0.00019178,2]
[330385942,1719339044067,-904.36,0.00019178,2]
[330385943,1719339044078,-500.0,0.00019178,2]
[330385944,1719339044093,-500.0,0.00019178,2]
[330385945,1719339044104,-500.0,0.00019178,2]
[330385946,1719339044114,-570.65,0.00019178,2]
[330385947,1719339044124,-869.92,0.00019178,2]
[330385948,1719339044135,-562.15,0.00019178,2]
[330385949,1719339044145,-745.11,0.00019178,2]
[330385950,1719339044156,-2546.63,0.00019178,2]
[330385951,1719339044167,-500.0,0.00019178,2]
[330385952,1719339044178,-500.0,0.00019178,2]
[330385953,1719339044189,-500.0,0.00019178,2]
[330385954,1719339044200,-500.0,0.00019178,2]
[330385955,1719339044210,-500.0,0.00019178,2]
[330385956,1719339044221,-500.0,0.00019178,2]
[330385957,1719339044231,-1131.46,0.00019178,2]
[330385958,1719339044242,-500.0,0.00019178,2]
[330385959,1719339044252,-775.77,0.00019178,2]
[330385960,1719339044262,-500.0,0.00019178,2]
[330385961,1719339044273,-2315.79,0.00019178,2]
[330385962,1719339044284,-747.06,0.00019178,2]
[330385963,1719339044295,-500.0,0.00019178,2]
[330385964,1719339044306,-1286.05,0.00019178,2]
[330385965,1719339044316,-500.0,0.00019178,2]
[330385966,1719339044327,-500.0,0.00019178,2]
[330385967,1719339044337,-500.0,0.00019178,2]
[330385968,1719339044348,-589.27,0.00019178,2]
[330385969,1719339044358,-510.77063824,0.00019178,2]
[330385970,1719339044368,-500.0,0.00019178,2]
[330385971,1719339044380,-658.77,0.00019178,2]
[330385972,1719339044390,-500.0,0.00019178,2]
[330385973,1719339044400,-500.0,0.00019178,2]
[330385974,1719339044410,-500.0,0.00019178,2]
[330385975,1719339044421,-500.0,0.00019178,2]
[330385976,1719339044432,-254.68999583,0.00019178,2]
[330385977,1719339044442,-500.0,0.00019178,2]
[330385978,1719339044452,-500.0,0.00019178,2]
[330385979,1719339044464,-819.95,0.00019178,2]
[330385980,1719339044474,-500.0,0.00019178,2]
[330385981,1719339044484,-325.81376281,0.00019178,2]
[330385982,1719339044495,-1068.91,0.00019178,2]
[330385983,1719339044505,-500.0,0.00019178,2]
[330385984,1719339044520,-806.79,0.00019178,2]
[330385985,1719339044531,-500.0,0.00019178,2]
[330385986,1719339044542,-500.0,0.00019178,2]
[330385987,1719339044556,-500.0,0.00019178,2]
[330385988,1719339044567,-500.0,0.00019178,2]
[330385989,1719339044578,-500.0,0.00019178,2]
[330385990,1719339044589,-500.0,0.00019178,2]
[330385991,1719339044604,-500.0,0.00019178,2]
[330385992,1719339044616,-777.08,0.00019178,2]
[330385993,1719339044627,-500.0,0.00019178,2]
[330385994,1719339044638,-642.58285994,0.00019178,2]
[330385995,1719339044648,-1328.22,0.00019178,2]
[330385996,1719339044660,-500.0,0.00019178,2]
[330385997,1719339044671,-16579.78,0.00019178,2]
[330385998,1719339044681,-1341.12,0.00019178,2]
[330385999,1719339044691,-1740.88,0.00019178,2]
[330386000,1719339044702,-955.66,0.00019178,2]
[330386001,1719339044712,-695.65,0.00019178,2]
[330386002,1719339044722,-501.26,0.00019178,2]
[330386003,1719339044732,-500.0,0.00019178,2]
[330386004,1719339044742,-1016.71,0.00019178,2]
[330386005,1719339044753,-500.0,0.00019178,2]
[330386006,1719339044763,-500.0,0.00019178,2]
[330386007,1719339044773,-500.0,0.00019178,2]
[330386008,1719339044783,-500.0,0.00019178,2]
[330386009,1719339044795,-1185.53,0.00019178,2]
[330386010,1719339044809,-1358.44,0.00019178,2]
[330386011,1719339044820,-2198.69,0.00019178,2]
[330386012,1719339044832,-1555.15,0.00019178,2]
[330386013,1719339044844,-500.0,0.00019178,2]
[330386014,1719339044855,-500.0,0.00019178,2]
[330386015,1719339044865,-1098.02,0.00019178,2]
[330386016,1719339044875,-6666.01,0.00019178,2]
[330386017,1719339044885,-670.89,0.00019178,2]
[330386018,1719339044895,-703.38,0.00019178,2]
[330386019,1719339044906,-500.0,0.00019178,2]
[330386020,1719339044916,-500.0,0.00019178,2]
[330386021,1719339044925,-953.36,0.00019178,2]
[330386022,1719339044937,-500.0,0.00019178,2]
[330386023,1719339044946,-500.0,0.00019178,2]
[330386024,1719339044956,-500.0,0.00019178,2]
[330386025,1719339044966,-500.0,0.00019178,2]
[330386026,1719339044976,-1310.78,0.00019178,2]
[330386027,1719339044986,-993.7,0.00019178,2]
[330386028,1719339044996,-500.0,0.00019178,2]
[330386029,1719339045006,-2991.8,0.00019178,2]
[330386030,1719339045016,-500.0,0.00019178,2]
[330386031,1719339045026,-543.34,0.00019178,2]
[330386032,1719339045036,-1143.55,0.00019178,2]
[330386033,1719339045050,-500.0,0.00019178,2]
[330386034,1719339045060,-25577.16,0.00019178,2]
[330386035,1719339045070,-500.0,0.00019178,2]
[330386036,1719339045080,-761.22,0.00019178,2]
[330386037,1719339045091,-500.0,0.00019178,2]
[330386038,1719339045101,-500.0,0.00019178,2]
[330386039,1719339045111,-500.0,0.00019178,2]
[330386040,1719339045121,-500.0,0.00019178,2]
[330386041,1719339045131,-500.0,0.00019178,2]
[330386042,1719339045142,-500.0,0.00019178,2]
[330386043,1719339045151,-500.0,0.00019178,2]
[330386044,1719339045161,-1309.94,0.00019178,2]
[330386045,1719339045171,-895.72,0.00019178,2]
[330386046,1719339045180,-500.0,0.00019178,2]
[330386047,1719339045191,-500.0,0.00019178,2]
[330386048,1719339045201,-500.0,0.00019178,2]
[330386049,1719339045211,-922.22,0.00019178,2]
[330386050,1719339045222,-1888.12,0.00019178,2]
[330386051,1719339045232,-500.0,0.00019178,2]
[330386052,1719339045242,-1642.2,0.00019178,2]
[330386053,1719339045724,-500.0,0.00019178,2]
[330386054,1719339045734,-2922.09,0.00019178,2]
[330386056,1719339045745,-1000.83,0.00019178,2]
[330386058,1719339045755,-500.0,0.00019178,2]
[330386060,1719339045764,-500.0,0.00019178,2]
[330386061,1719339045774,-500.0,0.00019178,2]
[330386063,1719339045784,-500.0,0.00019178,2]
[330386065,1719339045795,-24201.38,0.00019178,2]
[330386067,1719339045805,-500.0,0.00019178,2]
[330386068,1719339045815,-571.15,0.00019178,2]
[330386069,1719339045825,-500.0,0.00019178,2]
[330386070,1719339045835,-8374.84,0.00019178,2]
[330386071,1719339045845,-500.0,0.00019178,2]
[330386072,1719339045855,-500.0,0.00019178,2]
[330386073,1719339045865,-4446.89,0.00019178,2]
[330386074,1719339045874,-500.0,0.00019178,2]
[330386076,1719339045884,-500.0,0.00019178,2]
[330386077,1719339045893,-500.0,0.00019178,2]
[330386078,1719339045903,-500.0,0.00019178,2]
[330386080,1719339045912,-761.78,0.00019178,2]
[330386081,1719339045922,-500.0,0.00019178,2]
[330386083,1719339045931,-383.85371922,0.00019178,2]
[330386091,1719339046831,-125.17628078,0.00019178,2]
[330386092,1719339046840,-500.0,0.00019178,2]
[330386093,1719339046850,-500.0,0.00019178,2]
[330386094,1719339046859,-2029.31,0.00019178,2]
[330386095,1719339046868,-1551.96,0.00019178,2]
[330386096,1719339046878,-500.0,0.00019178,2]
[330386097,1719339046887,-500.0,0.00019178,2]
[330386098,1719339046896,-713.65,0.00019178,2]
[330386099,1719339046906,-929.67,0.00019178,2]
[330386100,1719339046916,-500.0,0.00019178,2]
[330386101,1719339046925,-3438.35,0.00019178,2]
[330386102,1719339046934,-500.0,0.00019178,2]
[330386103,1719339046945,-500.0,0.00019178,2]
[330386104,1719339046954,-500.0,0.00019178,2]
[330386105,1719339046964,-2569.54,0.00019178,2]
[330386106,1719339046974,-2333.8,0.00019178,2]
[330386107,1719339046983,-1039.73,0.00019178,2]
[330386108,1719339046992,-660.97,0.00019178,2]
[330386109,1719339047003,-707.81,0.00019178,2]
[330386110,1719339047013,-500.0,0.00019178,2]
[330386111,1719339047022,-500.0,0.00019178,2]
[330386112,1719339047032,-1624.83,0.00019178,2]
[330386113,1719339047041,-500.0,0.00019178,2]
[330386114,1719339047052,-1704.5,0.00019178,2]
[330386115,1719339047062,-507.31,0.00019178,2]
[330386116,1719339047071,-1120.06,0.00019178,2]
[330386117,1719339047080,-1993.79,0.00019178,2]
[330386118,1719339047091,-500.0,0.00019178,2]
[330386119,1719339047102,-558.32,0.00019178,2]
[330386120,1719339047111,-587.17,0.00019178,2]
[330386121,1719339047120,-500.0,0.00019178,2]
[330386122,1719339047129,-500.0,0.00019178,2]
[330386123,1719339047138,-911.09,0.00019178,2]
[330386124,1719339047147,-500.0,0.00019178,2]
[330386125,1719339047157,-500.0,0.00019178,2]
[330386126,1719339047166,-500.0,0.00019178,2]
[330386127,1719339047175,-500.0,0.00019178,2]
[330386128,1719339047184,-500.0,0.00019178,2]
[330386129,1719339047194,-500.0,0.00019178,2]
[330386130,1719339047203,-500.0,0.00019178,2]
[330386131,1719339047212,-647.97,0.00019178,2]
[330386132,1719339047221,-500.0,0.00019178,2]
[330386133,1719339047231,-562.16,0.00019178,2]
[330386134,1719339047241,-500.0,0.00019178,2]
[330386135,1719339047251,-500.0,0.00019178,2]
[330386136,1719339047260,-500.0,0.00019178,2]
[330386137,1719339047269,-3836.39,0.00019178,2]
[330386138,1719339047278,-500.0,0.00019178,2]
[330386139,1719339047286,-500.0,0.00019178,2]
[330386140,1719339047297,-500.0,0.00019178,2]
[330386141,1719339047306,-500.0,0.00019178,2]
[330386142,1719339047315,-500.0,0.00019178,2]
[330386143,1719339047325,-500.0,0.00019178,2]
[330386144,1719339047334,-1759.25,0.00019178,2]
[330386145,1719339047344,-2494.05,0.00019178,2]
[330386146,1719339047353,-500.0,0.00019178,2]
[330386147,1719339047362,-539.07,0.00019178,2]
[330386148,1719339047372,-500.0,0.00019178,2]
[330386149,1719339047381,-500.0,0.00019178,2]
[330386150,1719339047392,-18250.26304385,0.00019178,2]
[330386151,1719339047406,-1697.27162398,0.00019178,2]
[330386152,1719339047418,-6183.97533217,0.00019178,2]
[330386153,1719339047428,-802.92,0.00019178,2]
[330386154,1719339047438,-500.0,0.00019178,2]
[330386155,1719339047448,-2410.37,0.00019178,2]
[330386156,1719339047458,-500.0,0.00019178,2]
[330386157,1719339047468,-1693.25,0.00019178,2]
[330386158,1719339047477,-500.0,0.00019178,2]
[330386159,1719339047487,-500.0,0.00019178,2]
[330386160,1719339047496,-1135.86,0.00019178,2]
[330386161,1719339047506,-1285.26,0.00019178,2]
[330386162,1719339047521,-3922.08,0.00019178,2]
[330386163,1719339047531,-1641.05,0.00019178,2]
[330386164,1719339047541,-500.0,0.00019178,2]
[330386165,1719339047550,-2980.84,0.00019178,2]
[330386166,1719339047561,-500.0,0.00019178,2]
[330386167,1719339047570,-1559.59,0.00019178,2]
[330386168,1719339047580,-500.0,0.00019178,2]
[330386169,1719339047589,-8686.76,0.00019178,2]
[330386170,1719339047600,-500.0,0.00019178,2]
[330386171,1719339047610,-500.0,0.00019178,2]
[330386172,1719339047619,-500.0,0.00019178,2]
[330386173,1719339047629,-500.0,0.00019178,2]
[330386174,1719339047639,-732.72,0.00019178,2]
[330386175,1719339047648,-500.0,0.00019178,2]
[330386176,1719339047658,-500.0,0.00019178,2]
[330386177,1719339047667,-500.0,0.00019178,2]
[330386178,1719339047676,-2892.36,0.00019178,2]
[330386179,1719339047685,-500.0,0.00019178,2]
[330386180,1719339047695,-500.0,0.00019178,2]
[330386181,1719339047704,-562.74,0.00019178,2]
[330386182,1719339047714,-500.0,0.00019178,2]
[330386183,1719339047724,-1431.12,0.00019178,2]
[330386184,1719339047733,-500.0,0.00019178,2]
[330386185,1719339047742,-500.0,0.00019178,2]
[330386186,1719339047752,-500.0,0.00019178,2]
[330386187,1719339047762,-500.0,0.00019178,2]
[330386188,1719339047772,-7295.44,0.00019178,2]
[330386189,1719339047783,-5581.23,0.00019178,2]
[330386190,1719339047795,-500.0,0.00019178,2]
[330386191,1719339047805,-500.0,0.00019178,2]
[330386192,1719339047817,-500.0,0.00019178,2]
[330386193,1719339047827,-521.34,0.00019178,2]
[330386194,1719339047836,-1769.66,0.00019178,2]
[330386195,1719339047847,-500.0,0.00019178,2]
[330386196,1719339047857,-500.0,0.00019178,2]
[330386197,1719339047866,-1631.5,0.00019178,2]
[330386198,1719339047875,-236.68450926,0.00019178,2]
[330386199,1719339047884,-562.28,0.00019178,2]
[330386200,1719339047894,-3920.2,0.00019178,2]
[330386201,1719339047903,-500.0,0.00019178,2]
[330386202,1719339047913,-12627.91007948,0.00019178,2]